[Event "Titled Tuesday Blitz June 13 Early 2023"]
[White "Sovetbekova, Nurai"]
[Black "Sailer, Mike"]
[WhiteFideId "13801910"]
[BlackFideId "2012901"]
[WhiteElo "1857"]
[BlackElo "2109"]
[Result "1-0"]
[Round "8"]
[TimeControl "180+2"]
[Date "2023.06.13"]
[WhiteClock "0:00:16"]
[BlackClock "0:00:00"]
[Board "163"]

1. d4 {[%clk 0:03:00]}  d5 {[%clk 0:02:59]} 2. c4 {[%clk 0:03:00]}  c6 {[%clk 0:03:00]} 3. Nf3 {[%clk 0:03:00]}  Nf6 {[%clk 0:03:00]} 4. g3 {[%clk 0:03:00]}  a6 {[%clk 0:03:01]} 5. Bg2 {[%clk 0:02:59]}  b5 {[%clk 0:03:02]} 6. b3 {[%clk 0:02:53]}  Bf5 {[%clk 0:03:00]} 7. O-O {[%clk 0:02:52]}  e6 {[%clk 0:02:58]} 8. Nc3 {[%clk 0:02:40]}  Be7 {[%clk 0:02:53]} 9. Nd2 {[%clk 0:02:35]}  O-O {[%clk 0:02:34]} 10. e4 {[%clk 0:02:33]}  dxe4 {[%clk 0:02:26]} 11. Ndxe4 {[%clk 0:02:33]}  Nxe4 {[%clk 0:02:26]} 12. Nxe4 {[%clk 0:02:31]}  Nd7 {[%clk 0:02:24]} 13. Bb2 {[%clk 0:02:26]}  Rc8 {[%clk 0:02:13]} 14. d5 {[%clk 0:02:22]}  cxd5 {[%clk 0:02:06]} 15. cxd5 {[%clk 0:02:23]}  exd5 {[%clk 0:02:03]} 16. Qxd5 {[%clk 0:02:24]}  Bxe4 {[%clk 0:01:29]} 17. Qxe4 {[%clk 0:02:14]}  Nf6 {[%clk 0:01:19]} 18. Qb7 {[%clk 0:02:08]}  Qd2 {[%clk 0:01:02]} 19. Rab1 {[%clk 0:01:28]}  Rc2 {[%clk 0:00:37]} 20. Bc1 {[%clk 0:01:24]}  Qe2 {[%clk 0:00:31]} 21. Be3 {[%clk 0:01:19]}  Bb4 {[%clk 0:00:13]} 22. Bf3 {[%clk 0:01:15]}  Qd3 {[%clk 0:00:08]} 23. Qxa6 {[%clk 0:01:08]}  h5 {[%clk 0:00:07]} 24. Rbd1 {[%clk 0:00:59]}  Qc3 {[%clk 0:00:07]} 25. Bd4 {[%clk 0:00:49]}  Qxf3 {[%clk 0:00:05]} 26. Qxb5 {[%clk 0:00:44]}  Be7 {[%clk 0:00:03]} 27. Rde1 {[%clk 0:00:38]}  Bd8 {[%clk 0:00:03]} 28. Re3 {[%clk 0:00:31]}  Qg4 {[%clk 0:00:03]} 29. Bc5 {[%clk 0:00:24]}  h4 {[%clk 0:00:02]} 30. Bxf8 {[%clk 0:00:23]}  Kxf8 {[%clk 0:00:03]} 31. Qb8 {[%clk 0:00:19]}  Qd7 {[%clk 0:00:00]} 32. Rfe1 {[%clk 0:00:16]} 1-0


[Site "https://www.chess.com"]

[Event "Titled Tuesday Blitz June 13 Early 2023"]
[White "Simonovic, Miroslav"]
[Black "Samarth J Rao"]
[WhiteFideId "919152"]
[BlackFideId "46652370"]
[WhiteElo "2075"]
[BlackElo "1564"]
[Result "0-1"]
[Round "8"]
[TimeControl "180+2"]
[Date "2023.06.13"]
[WhiteClock "0:00:15"]
[BlackClock "0:00:14"]
[Board "164"]

1. d4 {[%clk 0:03:00]}  Nf6 {[%clk 0:02:45]} 2. Bg5 {[%clk 0:03:01]}  e6 {[%clk 0:02:44]} 3. e4 {[%clk 0:03:00]}  Be7 {[%clk 0:02:44]} 4. Bd3 {[%clk 0:02:59]}  g6 {[%clk 0:02:39]} 5. Bxf6 {[%clk 0:02:53]}  Bxf6 {[%clk 0:02:39]} 6. e5 {[%clk 0:02:53]}  Bg7 {[%clk 0:02:39]} 7. h4 {[%clk 0:02:54]}  h5 {[%clk 0:02:38]} 8. g4 {[%clk 0:02:54]}  c5 {[%clk 0:02:29]} 9. c3 {[%clk 0:02:36]}  cxd4 {[%clk 0:02:25]} 10. cxd4 {[%clk 0:02:36]}  Nc6 {[%clk 0:02:25]} 11. Be4 {[%clk 0:02:15]}  Qb6 {[%clk 0:02:23]} 12. Bxc6 {[%clk 0:02:14]}  bxc6 {[%clk 0:02:21]} 13. Qd2 {[%clk 0:02:01]}  c5 {[%clk 0:02:18]} 14. f4 {[%clk 0:01:49]}  hxg4 {[%clk 0:02:09]} 15. Ne2 {[%clk 0:01:42]}  Bb7 {[%clk 0:02:04]} 16. Rh2 {[%clk 0:01:36]}  Bf3 {[%clk 0:02:00]} 17. Nbc3 {[%clk 0:01:11]}  Rb8 {[%clk 0:01:40]} 18. dxc5 {[%clk 0:01:00]}  Qxb2 {[%clk 0:01:37]} 19. Qxb2 {[%clk 0:00:54]}  Rxb2 {[%clk 0:01:38]} 20. O-O-O {[%clk 0:00:41]}  Rb4 {[%clk 0:01:33]} 21. Rd4 {[%clk 0:00:26]}  a5 {[%clk 0:00:38]} 22. a3 {[%clk 0:00:21]}  g3 {[%clk 0:00:19]} 23. Rh3 {[%clk 0:00:16]}  Rxd4 {[%clk 0:00:19]} 24. Nxd4 {[%clk 0:00:15]}  Ba8 {[%clk 0:00:20]} 25. Rxg3 {[%clk 0:00:14]}  Rxh4 {[%clk 0:00:21]} 26. Ncb5 {[%clk 0:00:14]}  Bh6 {[%clk 0:00:19]} 27. Nc7+ {[%clk 0:00:13]}  Ke7 {[%clk 0:00:18]} 28. Ne2 {[%clk 0:00:11]}  Bc6 {[%clk 0:00:17]} 29. Kd2 {[%clk 0:00:09]}  Rh5 {[%clk 0:00:15]} 30. Ke3 {[%clk 0:00:08]}  Rxe5+ {[%clk 0:00:14]} 31. Kf2 {[%clk 0:00:07]}  Rxc5 {[%clk 0:00:13]} 32. Nd4 {[%clk 0:00:07]}  Bg7 {[%clk 0:00:10]} 33. Nxc6+ {[%clk 0:00:07]}  dxc6 {[%clk 0:00:11]} 34. Rd3 {[%clk 0:00:06]}  Rc2+ {[%clk 0:00:09]} 35. Ke1 {[%clk 0:00:06]}  Rc3 {[%clk 0:00:09]} 36. Rd1 {[%clk 0:00:04]}  e5 {[%clk 0:00:08]} 37. Na6 {[%clk 0:00:05]}  exf4 {[%clk 0:00:08]} 38. a4 {[%clk 0:00:04]}  Re3+ {[%clk 0:00:09]} 39. Kf1 {[%clk 0:00:05]}  Re5 {[%clk 0:00:08]} 40. Nc7 {[%clk 0:00:03]}  g5 {[%clk 0:00:08]} 41. Re1 {[%clk 0:00:03]}  Rxe1+ {[%clk 0:00:08]} 42. Kxe1 {[%clk 0:00:04]}  Be5 {[%clk 0:00:07]} 43. Na6 {[%clk 0:00:05]}  Bd6 {[%clk 0:00:07]} 44. Ke2 {[%clk 0:00:04]}  Kd8 {[%clk 0:00:08]} 45. Kf3 {[%clk 0:00:05]}  f5 {[%clk 0:00:07]} 46. Kf2 {[%clk 0:00:05]}  Kc8 {[%clk 0:00:07]} 47. Kg2 {[%clk 0:00:06]}  Kb7 {[%clk 0:00:07]} 48. Nc5+ {[%clk 0:00:07]}  Bxc5 {[%clk 0:00:07]} 49. Kf3 {[%clk 0:00:07]}  Bd6 {[%clk 0:00:07]} 50. Kg2 {[%clk 0:00:08]}  g4 {[%clk 0:00:07]} 51. Kf1 {[%clk 0:00:08]}  Kb6 {[%clk 0:00:08]} 52. Kg1 {[%clk 0:00:09]}  Kc5 {[%clk 0:00:09]} 53. Kf1 {[%clk 0:00:10]}  Kb4 {[%clk 0:00:10]} 54. Ke2 {[%clk 0:00:11]}  Kxa4 {[%clk 0:00:10]} 55. Kf2 {[%clk 0:00:12]}  Kb5 {[%clk 0:00:11]} 56. Ke2 {[%clk 0:00:13]}  Kc4 {[%clk 0:00:12]} 57. Kd2 {[%clk 0:00:12]}  Kd4 {[%clk 0:00:12]} 58. Kc2 {[%clk 0:00:13]}  Kc4 {[%clk 0:00:12]} 59. Kd2 {[%clk 0:00:13]}  Bc5 {[%clk 0:00:12]} 60. Ke2 {[%clk 0:00:14]}  Be3 {[%clk 0:00:13]} 61. Kd1 {[%clk 0:00:14]}  Kd3 {[%clk 0:00:13]} 62. Ke1 {[%clk 0:00:14]}  g3 {[%clk 0:00:13]} 63. Kf1 {[%clk 0:00:15]}  f3 {[%clk 0:00:13]} 64. Ke1 {[%clk 0:00:15]}  g2 {[%clk 0:00:13]} 65. Kd1 {[%clk 0:00:15]}  g1=Q# {[%clk 0:00:14]} 0-1


[Site "https://www.chess.com"]

[Event "Titled Tuesday Blitz June 13 Early 2023"]
[White "Vargas, Mauricio"]
[Black "Ramirez Vido, Robert Yorisan"]
[WhiteFideId "4404572"]
[BlackFideId "3513823"]
[WhiteElo "1986"]
[BlackElo "2363"]
[Result "0-1"]
[Round "8"]
[TimeControl "180+2"]
[Date "2023.06.13"]
[WhiteClock "0:00:40"]
[BlackClock "0:00:10"]
[Board "168"]

1. e4 {[%clk 0:02:59]}  d6 {[%clk 0:03:00]} 2. f4 {[%clk 0:02:58]}  Nf6 {[%clk 0:02:59]} 3. Nc3 {[%clk 0:02:58]}  g6 {[%clk 0:02:54]} 4. Nf3 {[%clk 0:02:57]}  Bg7 {[%clk 0:02:54]} 5. Bb5+ {[%clk 0:02:54]}  c6 {[%clk 0:02:53]} 6. Ba4 {[%clk 0:02:54]}  b5 {[%clk 0:02:52]} 7. Bb3 {[%clk 0:02:51]}  b4 {[%clk 0:02:52]} 8. e5 {[%clk 0:02:49]}  bxc3 {[%clk 0:02:38]} 9. exf6 {[%clk 0:02:49]}  cxd2+ {[%clk 0:02:25]} 10. Qxd2 {[%clk 0:02:34]}  Bxf6 {[%clk 0:02:24]} 11. O-O {[%clk 0:02:33]}  O-O {[%clk 0:02:21]} 12. c3 {[%clk 0:02:32]}  Nd7 {[%clk 0:02:13]} 13. Re1 {[%clk 0:02:28]}  Nc5 {[%clk 0:02:02]} 14. Bc2 {[%clk 0:02:27]}  Qb6 {[%clk 0:01:52]} 15. Kh1 {[%clk 0:02:23]}  Bg4 {[%clk 0:01:45]} 16. Qf2 {[%clk 0:02:17]}  Ne6 {[%clk 0:01:24]} 17. h3 {[%clk 0:02:14]}  Qxf2 {[%clk 0:01:21]} 18. hxg4 {[%clk 0:02:09]}  Qg3 {[%clk 0:01:09]} 19. g5 {[%clk 0:02:06]}  Bg7 {[%clk 0:01:04]} 20. f5 {[%clk 0:01:58]}  Nf4 {[%clk 0:01:01]} 21. Bxf4 {[%clk 0:01:55]}  Qxf4 {[%clk 0:01:02]} 22. fxg6 {[%clk 0:01:55]}  fxg6 {[%clk 0:00:55]} 23. Rxe7 {[%clk 0:01:55]}  Rf7 {[%clk 0:00:55]} 24. Bb3 {[%clk 0:01:45]}  d5 {[%clk 0:00:53]} 25. Re6 {[%clk 0:01:40]}  Raf8 {[%clk 0:00:39]} 26. Rxc6 {[%clk 0:01:35]}  Qe4 {[%clk 0:00:35]} 27. Re1 {[%clk 0:01:26]}  Qxe1+ {[%clk 0:00:20]} 28. Nxe1 {[%clk 0:01:25]}  Rf1+ {[%clk 0:00:21]} 29. Kh2 {[%clk 0:01:24]}  Be5+ {[%clk 0:00:19]} 30. Kh3 {[%clk 0:01:17]}  Rxe1 {[%clk 0:00:19]} 31. Bxd5+ {[%clk 0:01:10]}  Kh8 {[%clk 0:00:19]} 32. c4 {[%clk 0:01:08]}  Rh1+ {[%clk 0:00:16]} 33. Kg4 {[%clk 0:01:08]}  Rf4+ {[%clk 0:00:17]} 34. Kg3 {[%clk 0:01:07]}  Rxc4+ {[%clk 0:00:14]} 35. Kf3 {[%clk 0:01:05]}  Rxc6 {[%clk 0:00:13]} 36. Bxc6 {[%clk 0:01:05]}  Rc1 {[%clk 0:00:12]} 37. Bd5 {[%clk 0:00:55]}  Bxb2 {[%clk 0:00:11]} 38. Ke4 {[%clk 0:00:52]}  Rc2 {[%clk 0:00:10]} 39. Kd3 {[%clk 0:00:50]}  Rf2 {[%clk 0:00:10]} 40. Bf3 {[%clk 0:00:48]}  Bc1 {[%clk 0:00:08]} 41. a4 {[%clk 0:00:46]}  Bxg5 {[%clk 0:00:08]} 42. Kc4 {[%clk 0:00:45]}  Be3 {[%clk 0:00:06]} 43. Kb5 {[%clk 0:00:44]}  Rxf3 {[%clk 0:00:06]} 44. gxf3 {[%clk 0:00:43]}  h5 {[%clk 0:00:07]} 45. Kc4 {[%clk 0:00:42]}  h4 {[%clk 0:00:07]} 46. Kd3 {[%clk 0:00:43]}  h3 {[%clk 0:00:07]} 47. Kxe3 {[%clk 0:00:42]}  h2 {[%clk 0:00:07]} 48. Kf2 {[%clk 0:00:41]}  h1=Q {[%clk 0:00:08]} 49. a5 {[%clk 0:00:41]}  Qa1 {[%clk 0:00:06]} 50. a6 {[%clk 0:00:40]}  Qxa6 {[%clk 0:00:07]} 51. Kg3 {[%clk 0:00:41]}  Qb6 {[%clk 0:00:08]} 52. Kg4 {[%clk 0:00:41]}  a5 {[%clk 0:00:09]} 53. Kg5 {[%clk 0:00:41]}  a4 {[%clk 0:00:09]} 54. f4 {[%clk 0:00:41]}  a3 {[%clk 0:00:10]} 55. Kg4 {[%clk 0:00:41]}  a2 {[%clk 0:00:11]} 56. Kg5 {[%clk 0:00:42]}  a1=Q {[%clk 0:00:10]} 57. Kh6 {[%clk 0:00:42]}  Qh1+ {[%clk 0:00:09]} 58. Kg5 {[%clk 0:00:43]}  Qc5+ {[%clk 0:00:10]} 59. Kxg6 {[%clk 0:00:42]}  Qg2+ {[%clk 0:00:10]} 60. Kf6 {[%clk 0:00:41]}  Qd6+ {[%clk 0:00:10]} 61. Kf5 {[%clk 0:00:40]}  Qgg6# {[%clk 0:00:10]} 0-1


[Site "https://www.chess.com"]

[Event "Titled Tuesday Blitz June 13 Early 2023"]
[White "Fabris, Alberto"]
[Black "Chuemsakul, Sarocha"]
[WhiteFideId "801348"]
[BlackFideId "6203710"]
[WhiteElo "2174"]
[BlackElo "1686"]
[Result "0-1"]
[Round "8"]
[TimeControl "180+2"]
[Date "2023.06.13"]
[WhiteClock "0:00:00"]
[BlackClock "0:01:44"]
[Board "169"]

1. e4 {[%clk 0:03:00]}  g6 {[%clk 0:02:58]} 2. d4 {[%clk 0:03:00]}  Bg7 {[%clk 0:02:58]} 3. c4 {[%clk 0:03:00]}  d6 {[%clk 0:02:59]} 4. Nc3 {[%clk 0:03:00]}  Nc6 {[%clk 0:02:59]} 5. Be3 {[%clk 0:02:59]}  e5 {[%clk 0:02:59]} 6. Nge2 {[%clk 0:02:55]}  Nge7 {[%clk 0:02:56]} 7. d5 {[%clk 0:02:50]}  Nb8 {[%clk 0:02:56]} 8. Qd2 {[%clk 0:02:47]}  Nd7 {[%clk 0:02:53]} 9. f3 {[%clk 0:02:46]}  O-O {[%clk 0:02:53]} 10. g4 {[%clk 0:02:44]}  f5 {[%clk 0:02:53]} 11. gxf5 {[%clk 0:02:43]}  gxf5 {[%clk 0:02:54]} 12. Bh3 {[%clk 0:02:40]}  f4 {[%clk 0:02:53]} 13. Bf2 {[%clk 0:02:39]}  Ng6 {[%clk 0:02:49]} 14. O-O-O {[%clk 0:02:33]}  Bf6 {[%clk 0:02:48]} 15. Rdg1 {[%clk 0:02:30]}  Bh4 {[%clk 0:02:48]} 16. Qe1 {[%clk 0:02:24]}  Kh8 {[%clk 0:02:41]} 17. Bf5 {[%clk 0:02:19]}  Bxf2 {[%clk 0:02:36]} 18. Qxf2 {[%clk 0:02:19]}  Nh4 {[%clk 0:02:34]} 19. Be6 {[%clk 0:02:11]}  Nc5 {[%clk 0:02:34]} 20. Kc2 {[%clk 0:02:10]}  Nxe6 {[%clk 0:02:30]} 21. dxe6 {[%clk 0:02:10]}  Bxe6 {[%clk 0:02:31]} 22. b3 {[%clk 0:02:04]}  Ng6 {[%clk 0:02:32]} 23. h4 {[%clk 0:01:58]}  a6 {[%clk 0:02:27]} 24. h5 {[%clk 0:01:57]}  Ne7 {[%clk 0:02:26]} 25. Nd5 {[%clk 0:01:51]}  b5 {[%clk 0:02:17]} 26. Nec3 {[%clk 0:01:42]}  bxc4 {[%clk 0:02:18]} 27. bxc4 {[%clk 0:01:42]}  c6 {[%clk 0:02:19]} 28. Nb6 {[%clk 0:01:13]}  Rb8 {[%clk 0:02:18]} 29. Nca4 {[%clk 0:01:14]}  Nc8 {[%clk 0:02:16]} 30. Rb1 {[%clk 0:01:10]}  Nxb6 {[%clk 0:02:07]} 31. Nxb6 {[%clk 0:01:08]}  Rf7 {[%clk 0:02:06]} 32. a4 {[%clk 0:00:58]}  a5 {[%clk 0:02:06]} 33. Rhg1 {[%clk 0:00:45]}  Rfb7 {[%clk 0:02:05]} 34. Qg2 {[%clk 0:00:45]}  Qf8 {[%clk 0:01:59]} 35. c5 {[%clk 0:00:07]}  dxc5 {[%clk 0:01:57]} 36. Nc4 {[%clk 0:00:04]}  Rxb1 {[%clk 0:01:51]} 37. Rxb1 {[%clk 0:00:04]}  Rxb1 {[%clk 0:01:51]} 38. Kxb1 {[%clk 0:00:04]}  Bxc4 {[%clk 0:01:52]} 39. Qg5 {[%clk 0:00:04]}  Qg7 {[%clk 0:01:46]} 40. Qd8+ {[%clk 0:00:03]}  Bg8 {[%clk 0:01:46]} 41. Kc2 {[%clk 0:00:00]}  Qf7 {[%clk 0:01:44]} 0-1


[Site "https://www.chess.com"]

[Event "Titled Tuesday Blitz June 13 Early 2023"]
[White "Kriti Mayur Patel"]
[Black "Hartikainen, Jarmo"]
[WhiteFideId "35061780"]
[BlackFideId "503134"]
[WhiteElo "1306"]
[BlackElo "2120"]
[Result "0-1"]
[Round "8"]
[TimeControl "180+2"]
[Date "2023.06.13"]
[WhiteClock "0:02:39"]
[BlackClock "0:02:11"]
[Board "171"]

1. e4 {[%clk 0:03:00]}  c5 {[%clk 0:02:59]} 2. d4 {[%clk 0:02:58]}  cxd4 {[%clk 0:02:59]} 3. c3 {[%clk 0:02:59]}  d5 {[%clk 0:02:59]} 4. exd5 {[%clk 0:02:58]}  Qxd5 {[%clk 0:03:00]} 5. cxd4 {[%clk 0:02:59]}  Nc6 {[%clk 0:03:00]} 6. Nf3 {[%clk 0:02:59]}  Bg4 {[%clk 0:03:00]} 7. Nc3 {[%clk 0:03:00]}  Bxf3 {[%clk 0:02:59]} 8. Nxd5 {[%clk 0:03:00]}  Bxd1 {[%clk 0:02:59]} 9. Nc7+ {[%clk 0:03:00]}  Kd8 {[%clk 0:02:59]} 10. Nxa8 {[%clk 0:03:01]}  Bh5 {[%clk 0:02:59]} 11. d5 {[%clk 0:03:00]}  Nd4 {[%clk 0:02:44]} 12. Be3 {[%clk 0:02:58]}  e5 {[%clk 0:02:35]} 13. dxe6 {[%clk 0:02:41]}  Bb4+ {[%clk 0:02:31]} 14. Bd2 {[%clk 0:02:39]}  Nc2# {[%clk 0:02:11]} 0-1


[Site "https://www.chess.com"]

[Event "Titled Tuesday Blitz June 13 Early 2023"]
[White "Mazarini41"]
[Black "Luxama, Jacques Muller"]
[BlackFideId "11900113"]
[WhiteElo "2526"]
[BlackElo "1931"]
[Result "1-0"]
[Round "8"]
[TimeControl "180+2"]
[Date "2023.06.13"]
[WhiteClock "0:00:32"]
[BlackClock "0:00:00"]
[Board "172"]

1. Nf3 {[%clk 0:03:00]}  Nf6 {[%clk 0:02:56]} 2. g3 {[%clk 0:03:00]}  g6 {[%clk 0:02:56]} 3. Bg2 {[%clk 0:03:01]}  Bg7 {[%clk 0:02:57]} 4. O-O {[%clk 0:03:01]}  O-O {[%clk 0:02:52]} 5. d4 {[%clk 0:03:01]}  c5 {[%clk 0:02:49]} 6. d5 {[%clk 0:03:00]}  d6 {[%clk 0:02:45]} 7. Nc3 {[%clk 0:02:56]}  a6 {[%clk 0:02:38]} 8. a4 {[%clk 0:02:56]}  Nbd7 {[%clk 0:02:33]} 9. Nd2 {[%clk 0:02:55]}  b6 {[%clk 0:02:32]} 10. e4 {[%clk 0:02:51]}  Rb8 {[%clk 0:02:26]} 11. Nc4 {[%clk 0:02:47]}  Qc7 {[%clk 0:02:14]} 12. Na3 {[%clk 0:02:42]}  e6 {[%clk 0:01:58]} 13. h3 {[%clk 0:02:35]}  exd5 {[%clk 0:01:56]} 14. exd5 {[%clk 0:02:35]}  Re8 {[%clk 0:01:52]} 15. Be3 {[%clk 0:02:21]}  Rxe3 {[%clk 0:01:45]} 16. fxe3 {[%clk 0:02:22]}  Bh6 {[%clk 0:01:40]} 17. e4 {[%clk 0:02:08]}  Kg7 {[%clk 0:01:27]} 18. Qe2 {[%clk 0:02:06]}  Ne5 {[%clk 0:01:24]} 19. Nc4 {[%clk 0:02:06]}  Nxc4 {[%clk 0:01:20]} 20. Qxc4 {[%clk 0:02:06]}  Qd7 {[%clk 0:01:16]} 21. Rf2 {[%clk 0:01:31]}  Be3 {[%clk 0:01:11]} 22. Rf1 {[%clk 0:01:30]}  b5 {[%clk 0:01:05]} 23. axb5 {[%clk 0:01:30]}  axb5 {[%clk 0:01:04]} 24. Qd3 {[%clk 0:01:28]}  Bxf2+ {[%clk 0:00:54]} 25. Rxf2 {[%clk 0:01:28]}  b4 {[%clk 0:00:49]} 26. Nd1 {[%clk 0:01:23]}  Qe7 {[%clk 0:00:48]} 27. Ne3 {[%clk 0:01:15]}  Qe5 {[%clk 0:00:45]} 28. Nc4 {[%clk 0:01:13]}  Qe7 {[%clk 0:00:35]} 29. Qf3 {[%clk 0:01:00]}  Ba6 {[%clk 0:00:30]} 30. Na5 {[%clk 0:00:52]}  Bb5 {[%clk 0:00:26]} 31. c4 {[%clk 0:00:43]}  Be8 {[%clk 0:00:17]} 32. g4 {[%clk 0:00:34]}  Ra8 {[%clk 0:00:07]} 33. Nc6 {[%clk 0:00:34]}  Bxc6 {[%clk 0:00:05]} 34. dxc6 {[%clk 0:00:35]}  Qe5 {[%clk 0:00:00]} 35. h4 {[%clk 0:00:32]} 1-0


[Site "https://www.chess.com"]

[Event "Titled Tuesday Blitz June 13 Early 2023"]
[White "Kiseljova, Marya"]
[Black "Pein, Jonathan"]
[WhiteFideId "4155009"]
[BlackFideId "417092"]
[WhiteElo "1831"]
[BlackElo "2151"]
[Result "0-1"]
[Round "8"]
[TimeControl "180+2"]
[Date "2023.06.13"]
[WhiteClock "0:00:00"]
[BlackClock "0:00:08"]
[Board "173"]

1. d4 {[%clk 0:02:56]}  d6 {[%clk 0:02:58]} 2. e4 {[%clk 0:02:55]}  Nf6 {[%clk 0:02:58]} 3. Nc3 {[%clk 0:02:53]}  e5 {[%clk 0:02:59]} 4. dxe5 {[%clk 0:02:40]}  dxe5 {[%clk 0:02:59]} 5. Qxd8+ {[%clk 0:02:40]}  Kxd8 {[%clk 0:03:00]} 6. Bg5 {[%clk 0:02:40]}  c6 {[%clk 0:02:56]} 7. f4 {[%clk 0:02:33]}  h6 {[%clk 0:02:50]} 8. Bh4 {[%clk 0:02:18]}  Nd7 {[%clk 0:02:34]} 9. O-O-O {[%clk 0:02:16]}  Ke8 {[%clk 0:02:23]} 10. g3 {[%clk 0:01:57]}  Bb4 {[%clk 0:02:18]} 11. Bg2 {[%clk 0:01:51]}  Ng4 {[%clk 0:02:13]} 12. Rd2 {[%clk 0:01:34]}  Bc5 {[%clk 0:02:00]} 13. Nh3 {[%clk 0:01:27]}  Be3 {[%clk 0:01:57]} 14. Rd1 {[%clk 0:01:27]}  exf4 {[%clk 0:01:42]} 15. gxf4 {[%clk 0:01:26]}  Nb6 {[%clk 0:01:34]} 16. Kb1 {[%clk 0:01:11]}  Bxd2 {[%clk 0:01:33]} 17. Rxd2 {[%clk 0:01:12]}  Bd7 {[%clk 0:01:27]} 18. Bf3 {[%clk 0:01:09]}  g5 {[%clk 0:01:14]} 19. Bg3 {[%clk 0:01:01]}  Nc4 {[%clk 0:01:09]} 20. Rxd7 {[%clk 0:00:59]}  Kxd7 {[%clk 0:01:10]} 21. Bxg4+ {[%clk 0:01:00]}  Ke7 {[%clk 0:01:08]} 22. fxg5 {[%clk 0:00:37]}  hxg5 {[%clk 0:01:09]} 23. Nf2 {[%clk 0:00:20]}  f6 {[%clk 0:01:04]} 24. b3 {[%clk 0:00:20]}  Ne5 {[%clk 0:00:52]} 25. Bf5 {[%clk 0:00:19]}  Rad8 {[%clk 0:00:51]} 26. Kb2 {[%clk 0:00:19]}  b6 {[%clk 0:00:49]} 27. Ng4 {[%clk 0:00:18]}  Nxg4 {[%clk 0:00:40]} 28. Bxg4 {[%clk 0:00:18]}  Rd2 {[%clk 0:00:41]} 29. Bf5 {[%clk 0:00:16]}  Rdxh2 {[%clk 0:00:38]} 30. Bxh2 {[%clk 0:00:16]}  Rxh2 {[%clk 0:00:38]} 31. Nd1 {[%clk 0:00:15]}  Re2 {[%clk 0:00:37]} 32. Kc3 {[%clk 0:00:13]}  Kd6 {[%clk 0:00:36]} 33. Kd3 {[%clk 0:00:13]}  Rh2 {[%clk 0:00:36]} 34. Ne3 {[%clk 0:00:13]}  b5 {[%clk 0:00:36]} 35. Ng4 {[%clk 0:00:13]}  Rh3+ {[%clk 0:00:36]} 36. Ke2 {[%clk 0:00:13]}  Rc3 {[%clk 0:00:35]} 37. Kd2 {[%clk 0:00:12]}  Rg3 {[%clk 0:00:35]} 38. Nxf6 {[%clk 0:00:12]}  Ke5 {[%clk 0:00:35]} 39. Nd7+ {[%clk 0:00:13]}  Kd4 {[%clk 0:00:34]} 40. Nb8 {[%clk 0:00:13]}  Rg2+ {[%clk 0:00:33]} 41. Kd1 {[%clk 0:00:12]}  c5 {[%clk 0:00:26]} 42. Nc6+ {[%clk 0:00:11]}  Kc3 {[%clk 0:00:26]} 43. Nxa7 {[%clk 0:00:11]}  Rd2+ {[%clk 0:00:26]} 44. Ke1 {[%clk 0:00:11]}  Rxc2 {[%clk 0:00:26]} 45. Nxb5+ {[%clk 0:00:11]}  Kb4 {[%clk 0:00:24]} 46. Nd6 {[%clk 0:00:11]}  Rxa2 {[%clk 0:00:23]} 47. e5 {[%clk 0:00:10]}  Ra6 {[%clk 0:00:13]} 48. Nc4 {[%clk 0:00:10]}  Kxb3 {[%clk 0:00:13]} 49. Nd2+ {[%clk 0:00:10]}  Kc3 {[%clk 0:00:13]} 50. Ne4+ {[%clk 0:00:10]}  Kd4 {[%clk 0:00:14]} 51. Nxg5 {[%clk 0:00:10]}  Kxe5 {[%clk 0:00:14]} 52. Bd3 {[%clk 0:00:09]}  Ra2 {[%clk 0:00:14]} 53. Nf7+ {[%clk 0:00:09]}  Kd4 {[%clk 0:00:15]} 54. Bf5 {[%clk 0:00:08]}  Ke3 {[%clk 0:00:14]} 55. Kd1 {[%clk 0:00:08]}  c4 {[%clk 0:00:15]} 56. Nd6 {[%clk 0:00:08]}  c3 {[%clk 0:00:14]} 57. Nc4+ {[%clk 0:00:08]}  Kd4 {[%clk 0:00:15]} 58. Nd6 {[%clk 0:00:08]}  Rd2+ {[%clk 0:00:14]} 59. Kc1 {[%clk 0:00:08]}  Rh2 {[%clk 0:00:11]} 60. Nb5+ {[%clk 0:00:06]}  Kc4 {[%clk 0:00:11]} 61. Nd6+ {[%clk 0:00:07]}  Kb4 {[%clk 0:00:11]} 62. Bd3 {[%clk 0:00:06]}  Kb3 {[%clk 0:00:10]} 63. Bc4+ {[%clk 0:00:06]}  Kb4 {[%clk 0:00:11]} 64. Bd3 {[%clk 0:00:06]}  Rd2 {[%clk 0:00:11]} 65. Ne4 {[%clk 0:00:01]}  Rxd3 {[%clk 0:00:11]} 66. Nf2 {[%clk 0:00:01]}  Rd2 {[%clk 0:00:10]} 67. Nd1 {[%clk 0:00:01]}  Rh2 {[%clk 0:00:08]} 68. Ne3 {[%clk 0:00:00]}  Kb3 {[%clk 0:00:08]} 0-1


[Site "https://www.chess.com"]

[Event "Titled Tuesday Blitz June 13 Early 2023"]
[White "Freile Martin, Javier"]
[Black "Winkels, Marcel"]
[WhiteFideId "3600165"]
[BlackFideId "1003887"]
[WhiteElo "2320"]
[BlackElo "1900"]
[Result "1-0"]
[Round "8"]
[TimeControl "180+2"]
[Date "2023.06.13"]
[WhiteClock "0:02:09"]
[BlackClock "0:00:08"]
[Board "174"]

1. c4 {[%clk 0:03:00]}  c5 {[%clk 0:02:58]} 2. Nc3 {[%clk 0:03:00]}  g6 {[%clk 0:02:56]} 3. Nf3 {[%clk 0:02:59]}  Bg7 {[%clk 0:02:56]} 4. e3 {[%clk 0:02:59]}  d6 {[%clk 0:02:54]} 5. d4 {[%clk 0:02:59]}  cxd4 {[%clk 0:02:54]} 6. exd4 {[%clk 0:02:59]}  Nc6 {[%clk 0:02:54]} 7. d5 {[%clk 0:02:59]}  Ne5 {[%clk 0:02:51]} 8. Nxe5 {[%clk 0:02:58]}  dxe5 {[%clk 0:02:51]} 9. c5 {[%clk 0:02:57]}  Nf6 {[%clk 0:02:50]} 10. Bb5+ {[%clk 0:02:55]}  Bd7 {[%clk 0:02:49]} 11. c6 {[%clk 0:02:55]}  O-O {[%clk 0:02:06]} 12. cxd7 {[%clk 0:02:53]}  Nxd7 {[%clk 0:02:07]} 13. Bxd7 {[%clk 0:02:52]}  Qxd7 {[%clk 0:02:07]} 14. O-O {[%clk 0:02:52]}  Rac8 {[%clk 0:02:04]} 15. Be3 {[%clk 0:02:50]}  f5 {[%clk 0:02:03]} 16. f3 {[%clk 0:02:49]}  b6 {[%clk 0:02:02]} 17. Qb3 {[%clk 0:02:48]}  Kh8 {[%clk 0:02:01]} 18. Rad1 {[%clk 0:02:47]}  f4 {[%clk 0:01:55]} 19. Bf2 {[%clk 0:02:46]}  g5 {[%clk 0:01:55]} 20. Ne4 {[%clk 0:02:36]}  g4 {[%clk 0:01:55]} 21. d6 {[%clk 0:02:33]}  e6 {[%clk 0:01:46]} 22. Ng5 {[%clk 0:02:22]}  gxf3 {[%clk 0:01:41]} 23. Qxe6 {[%clk 0:02:16]}  Qc6 {[%clk 0:01:11]} 24. d7 {[%clk 0:02:13]}  Qxe6 {[%clk 0:01:07]} 25. Nxe6 {[%clk 0:02:12]}  fxg2 {[%clk 0:00:08]} 26. Kxg2 {[%clk 0:02:09]} 1-0


[Site "https://www.chess.com"]